Cogmind - Beta 12 X6 @@@ ROGUE MODE // 2023.02.12 @ 03:49:24 Player: youngster Result: Destroyed by 8R-AWN with 8R-AWN's Boregun Performance ------------- Evolutions (0) 0 Regions Visited (3) 600 Robots Destroyed (36) 180 Value Destroyed (706) 706 Prototype IDs (2) 40 Alien Tech Used (0) 0 Bonus (-217) -217 TOTAL SCORE: 1309 Bonus ------- Friendly Fire -217 Cogmind --------- Core Integrity 0/250 Matter 140/300 Energy 100/100 System Corruption 4% Temperature Cool (0) Movement Treading (320) Ox2 Location -10/Exiles Parts ------- > --- POWER (1) -------- (None) > --- PROPULSION (2) --- Light Treads > --- UTILITY (2) ------ High-capacity Storage Unit > --- WEAPON (2) ------- Light Assault Rifle Heavy Assault Rifle > --- INVENTORY (20) --- Nuclear Core Reinforced Deuterium Engine Light Fission Core Compact Wheel EM Pulse Gun Light Assault Rifle Grenade Launcher Peak State ------------ > --- POWER ------------ Improved Ion Engine > --- PROPULSION ------- Light Treads Compact Wheel > --- UTILITY ---------- Huge Storage Unit Propulsion Shielding > --- WEAPON ----------- EM Pulse Gun Heavy Assault Rifle > --- INVENTORY -------- Light Ion Engine Light Treads Light Treads Light Treads Light Treads Light Treads Huge Storage Unit Medium Matter Pod Medium Matter Pod Improved Terrain Scanner Seismic Detector Transport Network Coupler Light Armor Plating Assault Rifle Light Assault Rifle Light Assault Rifle Heavy Assault Rifle Grenade Launcher [Rating: 11] Favorites ----------- Power Light Ion Engine Engine Light Ion Engine Propulsion Light Treads Treads Light Treads Wheel Compact Wheel Utility Huge Storage Unit Device Seismic Detector Storage Huge Storage Unit Protection Propulsion Shielding Weapon Light Assault Rifle Energy Gun EM Pulse Gun Ballistic Gun Light Assault Rifle Launcher Grenade Launcher Build | -11 -10 -10 -10 ------- Run | Jun Mat Min Exi Slots Evolved . | . . . . Power . | . . . . Propulsion . | . . . . Utility . | . . . . Weapon . | . . . . Parts Attached 61 | 8 16 21 16 Power 7 | 1 1 4 1 Engine 7 | 1 1 4 1 Core . | . . . . Reactor . | . . . . Propulsion 18 | 2 6 3 7 Treads 13 | 2 3 2 6 Leg . | . . . . Wheel 5 | . 3 1 1 Hover . | . . . . Flight . | . . . . Utility 14 | 2 4 5 3 Device 5 | 1 1 3 . Storage 3 | 1 1 . 1 Processor . | . . . . Hackware . | . . . . Protection 6 | . 2 2 2 Artifact . | . . . . Weapon 22 | 3 5 9 5 Energy Gun 4 | 1 1 2 . Energy Cannon . | . . . . Ballistic Gun 10 | 2 1 3 4 Ballistic Cannon . | . . . . Launcher 8 | . 3 4 1 Special Weapon . | . . . . Impact Weapon . | . . . . Slashing Weapon . | . . . . Piercing Weapon . | . . . . Special Melee Weapon . | . . . . Unidentified Prototypes . | . . . . Corrupted Parts 2 | . . . 2 System Corruption 2 | . . . 2 Parts Lost 17 | . 1 5 11 Power 6 | . 1 3 2 Propulsion 5 | . . . 5 Utility 2 | . . . 2 Weapon 4 | . . 2 2 Highest Loss Streak 11 | . 1 3 11 To Critical Strikes 9 | . . . 9 Average Slot Usage (%) 93 | . 100 95 75 Engine 13 | . 14 13 13 Treads 16 | . 19 14 16 Wheel 11 | . 8 13 10 Device 8 | . 4 11 9 Storage 14 | . 14 14 14 Protection 5 | . 9 2 3 Energy Gun 4 | . 3 7 . Ballistic Gun 16 | . 24 14 5 Launcher 1 | . . 2 . Naked Turns . | . . . . Heaviest Build 93 | 14 88 93 88 Greatest Support 40 | 40 40 16 16 Greatest Overweight (x) 5 | . 5 5 5 Average Overweight (x) 4 | . 3 5 4 Largest Inventory Capacity 25 | 8 25 25 25 Average Capacity 21 | 7 18 25 23 Most Carried 25 | 4 13 24 25 Average Carried 13 | 2 9 17 21 Final Capacity 25 | 8 25 25 20 Final Carried 24 | 3 13 24 7 Class Distribution -------------------- 82% | Mutant 17% | Scavenger-Mutant Dominant Class ---------------- Mutant | -10/Materials Mutant | -10/Mines Mutant | -10/Exiles Resources | -11 -10 -10 -10 ----------- Run | Jun Mat Min Exi Matter Collected 1624 | 335 605 455 229 Remotely . | . . . . Salvage Created 1174 | 133 819 199 23 Parts 65 | 11 38 16 . Haulers Intercepted 2 | . 2 . . Recyclers Shooed 2 | 1 1 . . Parts Field Recycled . | . . . . Retrieved Matter . | . . . . Parts Self-Destructed . | . . . . Prevented . | . . . . Kills | -11 -10 -10 -10 ------- Run | Jun Mat Min Exi Combat Hostiles Destroyed 37 | . 14 17 6 Guns 11 | . 9 2 . AOE 26 | . 5 15 6 Classes Destroyed 9 | 2 5 2 . Builder 1 | . 1 . . Tunneler 5 | 4 . 1 . Hauler 2 | . 2 . . Recycler 4 | 1 3 . . Watcher 3 | . 3 . . Swarmer 8 | . 5 3 . Grunt 11 | . 9 2 . Sentry 2 | . . 2 . Assembled 17 | . . 10 7 Best Kill Streak 8 | 2 8 4 6 Combat Bots Only 6 | . 6 4 6 Max Kills in Single Turn 3 | 1 2 2 3 Gunslinging . | . . . . Exploded 3 | . 2 2 3 Melee . | . . . . Uniques/NPCs Destroyed . | . . . . Combat | -11 -10 -10 -10 -------- Run | Jun Mat Min Exi Damage Taken 2093 | . 380 323 1390 Core 259 | . 41 44 174 Absorbed by Shields . | . . . . Redirected to Shielding 44 | . 40 4 . Core Remaining (%) 100 | 100 . . . Volleys Fired 151 | 18 60 27 46 Largest 2 | 2 2 2 2 Hottest 60 | 40 60 60 43 Shots Fired 268 | 36 117 31 84 Gun 235 | 36 114 6 79 Cannon . | . . . . Launcher 33 | . 3 25 5 Special . | . . . . Kinetic 220 | 36 101 4 79 Thermal . | . . . . Explosive 33 | . 3 25 5 Electromagnetic 15 | . 13 2 . Robot Hit Streak 15 | 9 7 6 15 Robot Miss Streak 8 | 2 8 1 3 Penetration Max . | . . . . Secondary Targets 1 | . 1 . . Max Gunslinging Chain 1 | . 1 . . Shots Hit Robots 153 | 25 57 10 61 Core Hits 102 | 9 34 35 24 Critical Kills 1 | . . 1 . Critical Parts Destroyed 2 | . 1 . 1 Critical Strikes 5 | . 1 1 3 Destroy 5 | . 1 1 3 Melee Attacks . | . . . . Impact . | . . . . Slashing . | . . . . Piercing . | . . . . Sneak Attacks . | . . . . Combat Hostiles . | . . . . Follow-up Attacks . | . . . . Damage Inflicted 3821 | 253 1047 1294 1227 Guns 1830 | 253 691 56 830 Cannons . | . . . . Explosions 1991 | . 356 1238 397 Melee . | . . . . Ramming . | . . . . Kinetic 1661 | 253 546 32 830 Thermal . | . . . . Explosive 1991 | . 356 1238 397 Electromagnetic 169 | . 145 24 . Impact . | . . . . Slashing . | . . . . Piercing . | . . . . Highest Corruption 4 | . 2 2 4 Average Corruption 2 | . 2 2 2 Corruption Purged . | . . . . Corruption Blocked . | . . . . Effects 27 | . 4 17 6 Message Errors 8 | . 1 7 . Matter Fused 4 | . 2 2 . Heat Flow Errors 5 | . . 2 3 Energy Discharges 4 | . 1 2 1 Data Loss (minor) 1 | . . 1 . Data Loss (major) 2 | . . . 2 Misfires 2 | . . 2 . Alerts 1 | . . 1 . Overload Shots . | . . . . Overflow Damage 100 | . 40 52 8 Projectiles . | . . . . Explosions 100 | . 40 52 8 Melee . | . . . . Knockbacks . | . . . . Impact . | . . . . Kinetic . | . . . . Secondary . | . . . . Self-Inflicted Damage 283 | . 132 151 . Shots 8 | . 2 6 . Rammed . | . . . . Targets Rammed . | . . . . Kicked . | . . . . Crushed . | . . . . Highest Temperature 212 | . 52 175 212 Average Temperature 69 | . 16 50 114 Received Heat Transfer 182 | . 90 92 . Siege Activations . | . . . . Robots Corrupted . | . . . . Combat Hostiles . | . . . . Parts Fried . | . . . . Impact Corruptions . | . . . . Robots Melted . | . . . . Combat Hostiles . | . . . . Parts Melted . | . . . . Heat Transferred . | . . . . Parts Sabotaged . | . . . . Parts Stolen . | . . . . Parts Stripped . | . . . . Power Chain Reactions . | . . . . Missiles Intercepted . | . . . . Alert | -11 -10 -10 -10 ------- Run | Jun Mat Min Exi Peak Influence 295 | 25 295 178 . Initial 67 | . 16 67 . Average 103 | 14 147 77 . Maximum Alert Level 1 | . 1 . . Low Security (%) 85 | 100 67 100 . Level 1 14 | . 32 . . Level 2 . | . . . . Level 3 . | . . . . Level 4 . | . . . . Level 5 . | . . . . High Security . | . . . . Max Security . | . . . . Squads Dispatched 3 | . 3 . . Investigation 2 | . 2 . . Extermination . | . . . . Reinforcement 1 | . 1 . . Assault . | . . . . Garrison . | . . . . Intercept . | . . . . Searches Triggered . | . . . . Construction Impeded . | . . . . Haulers Reinforced . | . . . . Active Scanning Responses . | . . . . Cargo Convoy Interrupts . | . . . . Stealth | -11 -10 -10 -10 --------- Run | Jun Mat Min Exi Distress Signals 4 | . 4 . . Communications Jammed . | . . . . Distress Signals . | . . . . Times Spotted 43 | . 22 14 7 Peak Tracking Total 8 | . 4 3 8 Tactical Retreats 3 | . 3 . . Traps | -11 -10 -10 -10 ------- Run | Jun Mat Min Exi Traps Triggered 1 | . 1 . . Indirectly . | . . . . Trap Hack Attempts . | . . . . Triggered . | . . . . Disarmed . | . . . . Reprogrammed . | . . . . Reused . | . . . . Traps Extracted . | . . . . Installed . | . . . . Triggered . | . . . . Machines | -11 -10 -10 -10 ---------- Run | Jun Mat Min Exi Machines Disabled 4 | . 2 . 2 Max in Single Turn 2 | . 2 . 2 Machines Repaired . | . . . . Machines Sabotaged . | . . . . Overloaded Fab Kills . | . . . . Hacking | -11 -10 -10 -10 --------- Run | Jun Mat Min Exi Machines Accessed 11 | . 10 . 1 Terminals 7 | . 7 . . Fabricators . | . . . . Repair Stations 1 | . 1 . . Recycling Units 2 | . 2 . . Scanalyzers . | . . . . Garrison Access . | . . . . Total Hacks 28 | . 27 . 1 Successful 13 | . 12 . 1 Failed 14 | . 14 . . Catastrophic 2 | . 2 . . Database Lockouts 1 | . 1 . . Manual 17 | . 17 . . Terminals 23 | . 23 . . Fabricators . | . . . . Repair Stations 2 | . 2 . . Recycling Units 2 | . 2 . . Scanalyzers . | . . . . Garrison Access . | . . . . Terminal Hacks 7 | . 6 . 1 Record 1 | . . . 1 Robot Schematic 1 | . 1 . . Robot Analysis 1 | . 1 . . Prototype ID Bank 1 | . 1 . . Terminal Index 1 | . 1 . . Repair Station Index 1 | . 1 . . Locate Traps 1 | . 1 . . Fabricator Hacks . | . . . . Repair Station Hacks 1 | . 1 . . Scan Component 1 | . 1 . . Recycling Unit Hacks . | . . . . Scanalyzer . | . . . . Garrison Access Hacks . | . . . . Unauthorized Hacks 5 | . 5 . . Terminals 3 | . 3 . . Track 1 | . 1 . . Botnet 1 | . 1 . . Operators 1 | . 1 . . Fabricators . | . . . . Repair Stations . | . . . . Recycling Units 2 | . 2 . . Tunnel 2 | . 2 . . Scanalyzers . | . . . . Garrison Access . | . . . . Data Cores Recovered . | . . . . Used . | . . . . Hacking Detections 5 | . 5 . . Full Trace Events 1 | . 1 . . Feedback Events . | . . . . Feedback Blocked . | . . . . Robot Schematics Acquired 1 | . 1 . . Robots Built . | . . . . Authchips . | . . . . Time . | . . . . Total Robot Build Rating . | . . . . Part Schematics Acquired . | . . . . Parts Built . | . . . . Authchips . | . . . . Time . | . . . . Total Part Build Rating . | . . . . Parts Repaired . | . . . . Time . | . . . . Parts Recycled . | . . . . Recycled Matter . | . . . . Retrieved Matter . | . . . . Retrieved Components . | . . . . Parts Scanalyzed . | . . . . Part Schematics Acquired . | . . . . Parts Damaged . | . . . . Bothacking | -11 -10 -10 -10 ------------ Run | Jun Mat Min Exi Used RIF Installer . | . . . . Robots Hacked . | . . . . Non-combat . | . . . . Combat . | . . . . Robot Hacks Applied . | . . . . Relay Couplers Released . | . . . . Fabnet Peak Effective % . | . . . . Robots Rewired . | . . . . Allies Hacked . | . . . . Hacks Repelled . | . . . . Allies | -11 -10 -10 -10 -------- Run | Jun Mat Min Exi Total Allies . | . . . . Largest Group . | . . . . Highest-Rated Group . | . . . . Highest-Rated Ally . | . . . . Total Orders . | . . . . Ally Attacks . | . . . . Total Damage . | . . . . Kills . | . . . . Allies Corrupted . | . . . . Allies Melted . | . . . . Intel | -11 -10 -10 -10 ------- Run | Jun Mat Min Exi Robot Analysis Total 1 | . 1 . . Derelict Logs Recovered 2 | . . 2 . Drone Launches . | . . . . Drone Recoveries . | . . . . Exploration | -11 -10 -10 -10 ------------- Run | Jun Mat Min Exi Turns Passed 3854 | 271 1398 1479 706 Spaces Moved 1767 | 129 631 699 308 Core 2 | 2 . . . Treads 318 | 127 191 . . Legs . | . . . . Wheels 1447 | . 440 699 308 Hover . | . . . . Flight . | . . . . Fastest Speed 50 | 50 160 175 130 Average Speed 171 | 158 170 175 171 Slowest Speed 175 | 160 175 175 175 Overloaded Moves . | . . . . Propulsion Burnouts . | . . . . Robots Hopped . | . . . . Cave-ins Triggered . | . . . . Exploration Rate (%) 65 | 8 98 100 56 Regions Visited 3 Branch Regions 2 Pre-discovered Areas 3 | . 2 . 1 Known Exits Taken . | . . . . Unknown Exits Taken 3 | 1 1 1 . Scrap Searched 2 | . . 2 . Spaces Dug 98 | . 23 75 . Terrain Destroyed 215 | . 44 161 10 Melee . | . . . . Projectile . | . . . . AOE 215 | . 44 161 10 Terrain Rammed . | . . . . Walls Destroyed . | . . . . Machines Disabled . | . . . . Actions | -11 -10 -10 -10 --------- Run | Jun Mat Min Exi Total 2335 | 160 842 920 413 Wait 307 | 2 125 158 22 Move 1764 | 128 630 698 308 Hop . | . . . . Pick Up 32 | 4 10 11 7 Fast Attach 8 | 6 . 2 . Attach 17 | 1 1 4 11 Detach 3 | . . 3 . Swap 36 | 1 15 15 5 Drop 17 | . 1 2 14 Fire 151 | 18 60 27 46 Melee . | . . . . Ram . | . . . . Kick . | . . . . Crush . | . . . . Escape Stasis . | . . . . Rewire . | . . . . Trap . | . . . . Miscellaneous . | . . . . Route ------- -11/Junkyard -10/Materials (discovered 4 exits: [*Mat x3] / [*Min]) -10/Mines (discovered 3 exits: [*Mat x2] / *Exi) -10/Exiles (discovered 1 exit: [*Min]) History --------- Turn | Location | Event 15 | -11/Junkyard | Discovered new exit (range 15) 272 | -11/Junkyard | Entered Materials 311 | -10/Materials | Build established: Mutant 772 | -10/Materials | Discovered new exit (range 15) 874 | -10/Materials | Central database locked down 1190 | -10/Materials | Discovered new exit (range 16) 1372 | -10/Materials | Discovered new exit (range 4) 1557 | -10/Materials | Discovered new exit (range 15) 1670 | -10/Materials | Entered Mines 1861 | -10/Mines | Discovered new exit (range 6) 1862 | -10/Mines | Assembled infested the area 1867 | -10/Mines | Assisted by a Guerilla fighting off Assembled 2292 | -10/Mines | Lost 3 parts (1p2w) 2550 | -10/Mines | Deemed a non-threat by the Exiles lab entrance 2551 | -10/Mines | Discovered new exit (range 5) 2588 | -10/Mines | Discovered new exit (range 11) 2879 | -10/Mines | Build established: Scavenger-Mutant 2879 | -10/Mines | Learned Materials emergency access door positions 3149 | -10/Mines | Entered Exiles 3212 | -10/Exiles | Met 8R-AWN 3241 | -10/Exiles | Met EX-HEX 3338 | -10/Exiles | Met EX-DEC 3370 | -10/Exiles | Learned location of Zion (-7) 3442 | -10/Exiles | Build established: Mutant 3610 | -10/Exiles | Discovered new exit (range 15) 3692 | -10/Exiles | Attacked by the Exiles 3726 | -10/Exiles | Core integrity fell below 50% 3771 | -10/Exiles | Core integrity fell below 20% 3855 | -10/Exiles | Destroyed by 8R-AWN with 8R-AWN's Boregun Last Messages --------------- 03820_ Penetrated by HV Slug. 03829_ Critical hit (Destroy). 03829_ Lgt. Ion Engine destroyed. 03829_ Penetrated by HV Slug. 03833_ Critical hit (Destroy). 03833_ Broken Lgt. Treads destroyed. 03833_ Penetrated by HV Slug. 03833_ Critical hit (Destroy). 03833_ Lgt. Treads destroyed. 03834_ Extracted 180 matter. 03837_ Penetrated by HV Slug. 03837_ HV Slug penetrates Wall. 03837_ HV Slug penetrates Assembled Analyzer. 03838_ The unstable cave ceiling collapses. 03841_ Penetrated by HV Slug. 03846_ HV Slug penetrates Wall. 03850_ Penetrated by HV Slug. 03855_ Critical hit (Destroy). 03855_ Lgt. Treads destroyed. 03855_ Penetrated by HV Slug. Map ----- +----------------------------------------------------+ | ?????????????????????????????????????????????????? | | ?????????????????????????????????????????????????? | | ?????????????????????????????????????????????????? | | ?????????????????????????????????????????????????? | | ?????????????????????????????????????????????????? | | ? ???????????????????????????????????????????? | | ??????????????????????????????????????????? | | ??????????????????????????????????????????? | | " ?????????????????????????????????????????? | | " ??????????????????????????????????????????? | | " ???????????????????????????????????????????? | | " #???????????????????????????????????????????? | | " #???????????????????????????????????????????? | | #???????????????????????????????????????????? | | ##??????? ??????????????????????????????????? | | ##???####;######???????????????????????????? | | #####"""" """"##??????????????????????????? | | " """ """"##?????????????????????????? | | " " #?????????????????????????? | | """#?????????????????????????? | | a"#???????????#####?????????? | | " "##?????????##" #?????????? | | "###???????#" #?????????? | | """ "#??????##" ##????????? | | ##""" #????### ###??????? | | ?#####""" @###??# ######## | | ?????##""" ! ;#?## #""""## | | ??????#"""" g;## ! | | ?????##"" ## ! | | ??####"""" #### | | ###""" ""#?#"""""#### | | """" #"""##?#######??#### | | ######??????????????# | | ##???????????????????? | | " ##????????????????????? | | "" """ "#?????????????????????? | | # ##""" " " ""#" ##?????????????????????? | | # ######""" """##" # ??????????????????????? | | # #????###""""###### #??????????????????????? | | # ####???######????### #???????????????????????? | | ! "!#???????????????###????????????????????????? | | " !#??????????????????????????????????????????? | | "! "#??????????????????????????????????????????? | | ! ""!"#??????????????????????????????????????????? | | #######??????????????????????????????????????????? | | ?????????????????????????????????????????????????? | | ?????????????????????????????????????????????????? | | ?????????????????????????????????????????????????? | | ?????????????????????????????????????????????????? | | ?????????????????????????????????????????????????? | +----------------------------------------------------+ Best States ------------- Heat Dissipation 25 Energy Generation 12 Energy Capacity 265 Matter Stores 300 Matter Capacity 300 Sight Range 16 Terrain Scan Density 10 Armor Coverage 150 Propulsion Shielding 33 Evasion (%) 40 Recoil Reduction 2 Item Schematics ----------------- None Robot Schematics ------------------ M-13 Machinist | -10/Materials | Hacked Fabricated ------------ Nothing Alien Tech Used ----------------- None Achievements -------------- None Challenges ------------ None Game ------ Seed DimensionalMassScrap Manual? 0 Play Time 00:28:48 Cumulative 375.4 hours Start 2023.02.11 @ 01:48:28 End 2023.02.12 @ 03:49:24 Sessions 2 Manual Loads 0 Difficulty Rogue Special Mode None Game No. 170 Rogue 170 Adventurer 0 Explorer 0 Win Type - Total 9 Types 6/0/1/1/0/0/0/1/0 Lore% 89 Gallery% 91 Achievement% 71 Wizard Run 0 Options --------- ASCII 1 Keyboard 1 Movement Vi Keybinds 0 Fullscreen 2 Font 18/Cog Map View 76x50 Tactical HUD 1 Map Filters NONE Filters NONE Steam 0 RUN: 7aa24b23-1a45-423e-b0e3-1665dcb7219d